bitfinex/quotes_BTCUSD_20250208
["timestamp","ask_amount","ask_price","bid_price","bid_amount"]
[1738996909250,0.50396757,96185.0,96184.0,0.00222428]
[1738996909454,0.65991657,96185.0,96184.0,0.00222428]
[1738996910039,0.64991657,96185.0,96184.0,0.00222428]
[1738996910211,0.50396757,96185.0,96184.0,0.00222428]
[1738996911507,0.65991657,96185.0,96184.0,0.00222428]
[1738996912121,0.48636757,96185.0,96184.0,0.00222428]
[1738996912351,0.50396757,96185.0,96184.0,0.05212428]
[1738996914118,0.50396757,96185.0,96184.0,0.28867528]
[1738996914654,0.51396757,96185.0,96184.0,0.28867528]
[1738996914885,0.50396757,96185.0,96184.0,0.28867528]
[1738996915088,0.51396757,96185.0,96184.0,0.28867528]
[1738996915286,0.50396757,96185.0,96184.0,0.28867528]
[1738996915502,0.50636757,96185.0,96184.0,0.28867528]
[1738996915917,0.50636757,96185.0,96184.0,0.28767528]
[1738996916157,0.49736757,96185.0,96184.0,0.28767528]
[1738996916358,0.50636757,96185.0,96184.0,0.28867528]
[1738996917277,0.49736757,96185.0,96184.0,0.28767528]
[1738996917645,0.50636757,96185.0,96184.0,0.28867528]
[1738996919184,0.49636757,96185.0,96184.0,0.28867528]
[1738996919381,0.48636757,96185.0,96184.0,0.28867528]
[1738996919926,0.49636757,96185.0,96184.0,0.28867528]
[1738996920690,0.48636757,96185.0,96184.0,0.28867528]
[1738996921204,0.17198338,96185.0,96184.0,0.28867528]
[1738996921406,0.15097518,96185.0,96184.0,0.28867528]
[1738996922400,0.14197518,96185.0,96184.0,0.28767528]
[1738996923273,0.1006572,96185.0,96184.0,0.28667528]
[1738996923647,0.09360215,96185.0,96184.0,0.28767528]
[1738996924258,0.09860215,96185.0,96184.0,0.28767528]
[1738996924654,0.08160215,96185.0,96184.0,0.28667528]
[1738996926010,0.09260215,96185.0,96184.0,0.28767528]
[1738996926461,0.08560215,96185.0,96184.0,0.28667528]
[1738996926869,0.08760215,96185.0,96184.0,0.28767528]
[1738996927280,0.08760215,96185.0,96184.0,0.28667528]
[1738996927281,0.08560215,96185.0,96184.0,0.28667528]
[1738996927643,0.09160215,96185.0,96184.0,0.28767528]
[1738996928057,0.08760215,96185.0,96184.0,0.28767528]
[1738996929124,0.08160215,96185.0,96184.0,0.28667528]
[1738996929524,0.08682643,96185.0,96184.0,0.28667528]
[1738996929932,0.08982643,96185.0,96184.0,0.28667528]
[1738996930818,0.06152643,96185.0,96184.0,0.28667528]
[1738996935194,0.0369967,96185.0,96184.0,0.28667528]
[1738996935401,0.10250365,96185.0,96184.0,0.28667528]
[1738996937210,0.01,96191.0,96190.0,0.282641]
[1738996937410,0.11250365,96191.0,96190.0,0.282641]
[1738996937655,0.12156385,96191.0,96190.0,0.282641]
[1738996937858,0.09143944,96191.0,96190.0,0.282641]
[1738996938061,0.10143944,96191.0,96190.0,0.282641]
[1738996938417,0.09143944,96191.0,96190.0,0.282641]
[1738996938794,0.05764378,96191.0,96190.0,0.282641]
[1738996938992,0.06364378,96191.0,96190.0,0.283641]
[1738996939191,0.03375377,96191.0,96190.0,0.283641]
[1738996939430,0.01819383,96191.0,96190.0,0.1277]
[1738996939639,0.31438419,96196.0,96190.0,0.2777]
[1738996939913,0.31451186,96196.0,96195.0,0.155933]
[1738996940769,0.32151186,96196.0,96195.0,0.155933]
[1738996941070,0.31451186,96196.0,96195.0,0.155933]
[1738996941417,0.32151186,96196.0,96195.0,0.156933]
[1738996942337,0.32151186,96196.0,96195.0,0.16743528]
[1738996942536,0.33051186,96196.0,96195.0,0.16743528]
[1738996942967,0.32151186,96196.0,96195.0,0.16743528]
[1738996943161,0.32151186,96196.0,96195.0,0.16843528]
[1738996943316,0.32551186,96196.0,96195.0,0.16843528]
[1738996943748,0.34286928,96196.0,96195.0,0.16843528]
[1738996944785,0.02848509,96196.0,96195.0,0.16843528]
[1738996945430,0.11363132,96196.0,96195.0,0.16843528]
[1738996947867,0.1318482,96196.0,96195.0,0.16843528]
[1738996949309,0.16424588,96196.0,96195.0,0.16843528]
[1738996950097,0.06174223,96196.0,96195.0,0.16843528]
[1738996953896,0.04352535,96196.0,96195.0,0.16843528]
[1738996954379,0.04363215,96196.0,96195.0,0.16843528]
[1738996965335,0.00511775,96196.0,96195.0,0.44243528]
[1738996965606,0.00022428,96215.0,96214.0,0.352202]
[1738996965830,0.00045454,96215.0,96214.0,0.1963]
[1738996966055,0.13541223,96215.0,96214.0,0.202202]
[1738996966319,0.13541223,96215.0,96214.0,0.155902]
[1738996966534,0.15363472,96215.0,96214.0,0.155902]
[1738996968326,0.15563472,96215.0,96214.0,0.156902]
[1738996968526,0.16163472,96215.0,96214.0,0.156902]
[1738996968853,0.15563472,96215.0,96214.0,0.155902]
[1738996969049,0.15763472,96215.0,96214.0,0.16737639]
[1738996971597,0.15563472,96215.0,96214.0,0.16737639]
[1738996971921,0.15463472,96215.0,96214.0,0.16637639]
[1738996972159,0.16063472,96215.0,96214.0,0.16737639]
[1738996978288,0.15463472,96215.0,96214.0,0.16660046]
[1738996978681,0.15963472,96215.0,96214.0,0.16760046]
[1738996979110,0.16163472,96215.0,96214.0,0.16760046]
[1738996985867,0.05913107,96215.0,96214.0,0.29630046]
[1738996986080,0.05913107,96215.0,96214.0,0.44630046]
[1738996986294,0.05313107,96215.0,96214.0,0.44530046]
[1738996986510,0.05913107,96215.0,96214.0,0.44630046]
[1738996986710,0.02667703,96215.0,96214.0,0.44630046]
[1738996986889,0.02667703,96215.0,96214.0,0.36440046]
[1738996987062,0.02067703,96215.0,96214.0,0.36340046]
[1738996987263,0.15358866,96215.0,96214.0,0.31660046]
[1738996987669,0.15558866,96215.0,96214.0,0.31660046]
[1738996987889,0.15758866,96215.0,96214.0,0.31660046]
[1738996988255,0.15958866,96215.0,96214.0,0.31660046]
[1738996989094,0.15558866,96215.0,96214.0,0.31660046]
[1738996989294,0.15358866,96215.0,96214.0,0.31660046]
[1738996989497,0.15958866,96215.0,96214.0,0.31760046]
[1738996990149,0.15358866,96215.0,96214.0,0.31660046]
[1738996990348,0.15958866,96215.0,96214.0,0.31660046]
[1738996990734,0.15758866,96215.0,96214.0,0.31660046]
[1738996991109,0.15958866,96215.0,96214.0,0.31660046]
[1738996994032,0.15558866,96215.0,96214.0,0.31660046]
[1738996994433,0.15358866,96215.0,96214.0,0.31660046]
[1738996994640,0.15558866,96215.0,96214.0,0.31660046]
[1738996995492,0.15958866,96215.0,96214.0,0.31660046]
[1738996999975,0.15358866,96215.0,96214.0,0.31660046]
[1738997000402,0.15958866,96215.0,96214.0,0.31660046]
[1738997005802,0.15958866,96215.0,96214.0,0.16660046]
[1738997006378,0.15558866,96215.0,96214.0,0.16660046]
[1738997006725,0.15758866,96215.0,96214.0,0.16660046]
[1738997006953,0.15958866,96215.0,96214.0,0.16660046]
[1738997007154,0.15558866,96215.0,96214.0,0.16660046]
[1738997007600,0.15958866,96215.0,96214.0,0.16660046]
[1738997008148,0.48397285,96215.0,96214.0,0.16660046]
[1738997008977,0.47997285,96215.0,96214.0,0.16660046]
[1738997009221,0.47997285,96215.0,96214.0,0.15712607]
[1738997009466,0.48597285,96215.0,96214.0,0.15712607]
[1738997009637,0.48397285,96215.0,96214.0,0.15712607]
[1738997009846,0.47797285,96215.0,96214.0,0.15612607]
[1738997010052,0.48797285,96215.0,96214.0,0.15712607]
[1738997010248,0.49797285,96215.0,96214.0,0.15712607]
[1738997010730,0.48797285,96215.0,96214.0,0.15712607]
[1738997011749,0.49797285,96215.0,96214.0,0.00122407]
[1738997012192,0.49797285,96215.0,96214.0,0.15712607]
[1738997014209,0.49797285,96215.0,96214.0,0.00122407]
[1738997014544,0.49797285,96215.0,96214.0,0.15712607]
[1738997015109,0.49797285,96215.0,96214.0,0.00122407]
[1738997017549,0.52372006,96215.0,96214.0,0.00122407]
[1738997017731,0.60482006,96215.0,96214.0,0.00122407]
[1738997019461,0.57907285,96215.0,96214.0,0.00122407]
[1738997040027,0.49797285,96215.0,96214.0,0.00122407]
[1738997060023,0.49713847,96215.0,96214.0,0.00122407]
[1738997065913,0.48713847,96215.0,96214.0,0.15712607]
[1738997066084,0.48469847,96215.0,96214.0,0.23632607]
[1738997067349,0.17031428,96215.0,96214.0,0.28482607]
[1738997070899,0.16275428,96215.0,96214.0,0.28482607]
[1738997071269,0.17031428,96215.0,96214.0,0.28482607]
[1738997072878,0.18031428,96215.0,96214.0,0.28482607]
[1738997073925,0.17031428,96215.0,96214.0,0.28482607]
[1738997074771,0.18031428,96215.0,96214.0,0.28482607]
[1738997075066,0.17031428,96215.0,96214.0,0.28482607]
[1738997077805,0.18031428,96215.0,96214.0,0.28482607]
[1738997082704,0.17031428,96215.0,96214.0,0.28482607]
[1738997091063,0.17031428,96215.0,96214.0,0.20562607]
[1738997091269,0.17031428,96215.0,96214.0,0.15712607]
[1738997096519,0.48469847,96215.0,96214.0,0.15712607]
[1738997101713,0.49469847,96215.0,96214.0,0.15712607]
[1738997103689,0.18031428,96215.0,96214.0,0.15712607]
[1738997105573,0.17275428,96215.0,96214.0,0.15712607]
[1738997105785,0.18031428,96215.0,96214.0,0.15712607]
[1738997107100,0.19935638,96215.0,96214.0,0.15712607]
[1738997107934,0.18031428,96215.0,96214.0,0.15712607]
[1738997112580,0.19031428,96215.0,96214.0,0.15712607]
[1738997116884,0.18031428,96215.0,96214.0,0.15712607]
[1738997121694,0.18031428,96215.0,96214.0,0.00122407]
[1738997121900,0.19135222,96215.0,96214.0,0.00122407]
[1738997122899,0.19031428,96215.0,96214.0,0.15712607]
[1738997124190,0.19031428,96215.0,96214.0,0.00122407]
[1738997125862,0.17292617,96215.0,96214.0,0.00122407]
[1738997126278,0.19031757,96215.0,96214.0,0.00122407]
[1738997127743,0.27031757,96215.0,96214.0,0.00122407]
[1738997128465,0.19031757,96215.0,96214.0,0.00122407]
[1738997129367,0.18031757,96215.0,96214.0,0.15712607]
[1738997131420,0.18031757,96215.0,96214.0,0.00122407]
[1738997131676,0.16292617,96215.0,96214.0,0.00122407]
[1738997132000,0.18031757,96215.0,96214.0,0.00122407]
[1738997134446,0.01,96213.0,96212.0,0.12061006]
[1738997134710,0.01,96210.0,96209.0,0.207878]
[1738997134920,0.14491163,96210.0,96209.0,0.207878]
[1738997135330,0.16230303,96210.0,96209.0,0.207878]
[1738997136639,0.16530303,96210.0,96209.0,0.20775005]
[1738997137378,0.16930303,96210.0,96209.0,0.20775005]
[1738997139539,0.16686303,96210.0,96209.0,0.25325005]
[1738997139762,0.15930303,96210.0,96209.0,0.25347433]
[1738997139964,0.15930303,96210.0,96209.0,0.33097433]
[1738997140138,0.15930303,96210.0,96209.0,0.25347433]
[1738997142256,0.15930303,96210.0,96209.0,0.33097433]
[1738997145097,0.16686303,96210.0,96209.0,0.33097433]
[1738997152035,0.16696983,96210.0,96209.0,0.33097433]
[1738997158418,0.16696983,96210.0,96209.0,0.25347433]
[1738997158621,0.16800777,96210.0,96209.0,0.20797433]
[1738997158822,0.16696983,96210.0,96209.0,0.20797433]
[1738997160842,0.17361561,96210.0,96209.0,0.00022428]
[1738997161309,0.17361561,96210.0,96209.0,0.25770228]
[1738997162216,0.16696983,96210.0,96209.0,0.25770228]
[1738997164942,0.15940983,96210.0,96209.0,0.25770228]
[1738997178732,0.15940983,96210.0,96209.0,0.2193877]
[1738997186855,0.15940983,96210.0,96209.0,0.21961198]
[1738997188217,0.01,96228.0,96209.0,0.21961198]
[1738997188218,0.00756,96231.0,96230.0,0.155876]
[1738997188576,0.1426527,96231.0,96230.0,0.155876]
[1738997188932,0.15926058,96231.0,96230.0,0.155876]
[1738997191675,0.16626058,96231.0,96230.0,0.156876]
[1738997191876,0.16626058,96231.0,96230.0,0.16726809]
[1738997197980,0.17275947,96231.0,96230.0,0.16726809]
[1738997198391,0.17286627,96231.0,96230.0,0.16726809]
[1738997207752,0.11157986,96231.0,96230.0,0.16726809]
[1738997208001,0.10508097,96231.0,96230.0,0.16726809]
[1738997208241,0.08847309,96231.0,96230.0,0.16726809]
[1738997211732,0.08847309,96231.0,96230.0,0.16749237]
[1738997225606,0.08147309,96231.0,96230.0,0.16649237]
[1738997226148,0.08847309,96231.0,96230.0,0.16749237]
[1738997226500,0.10509664,96231.0,96230.0,0.16749237]
[1738997229146,0.10509664,96231.0,96230.0,0.00122428]
[1738997229345,0.18353458,96231.0,96230.0,0.00122428]
[1738997229556,0.19353458,96231.0,96230.0,0.00122428]
[1738997234647,0.09857458,96231.0,96230.0,0.00122428]
[1738997234860,0.11509664,96231.0,96230.0,0.00122428]
[1738997235067,0.10753664,96231.0,96230.0,0.00122428]
[1738997235270,0.10509664,96231.0,96230.0,0.00122428]
[1738997235452,0.11509664,96231.0,96230.0,0.15710028]
[1738997235808,0.09847309,96231.0,96230.0,0.15710028]
[1738997236469,0.08847309,96231.0,96230.0,0.15710028]
[1738997236793,0.08847309,96231.0,96230.0,0.00122428]
[1738997236794,0.11509313,96231.0,96230.0,0.00122428]
[1738997236906,0.11509313,96231.0,96230.0,0.00022428]
[1738997237119,0.10809313,96231.0,96230.0,0.00022428]
[1738997237322,0.11509313,96231.0,96230.0,0.00122428]
[1738997237534,0.11509313,96231.0,96230.0,0.00222428]
[1738997237738,0.10809313,96231.0,96230.0,0.00022428]
[1738997237957,0.09913107,96231.0,96230.0,0.00022428]
[1738997238157,0.11613107,96231.0,96230.0,0.00222428]
[1738997239422,0.12263055,96231.0,96230.0,0.00222428]
[1738997239578,0.12263055,96231.0,96224.0,0.207846]
[1738997239579,0.01,96228.0,96224.0,0.207846]
[1738997239776,0.13496511,96227.0,96224.0,0.207846]
[1738997239984,0.03246146,96226.0,96225.0,0.155884]
[1738997240181,0.15158515,96226.0,96225.0,0.155884]
[1738997240386,0.15158515,96226.0,96221.0,0.207854]
[1738997240387,0.15262309,96226.0,96221.0,0.207854]
[1738997240596,0.10250365,96224.0,96221.0,0.15589]
[1738997240843,0.03246146,96223.0,96221.0,0.15589]
[1738997241018,0.10250365,96222.0,96221.0,0.15589]
[1738997241222,0.15158515,96222.0,96215.0,0.0493]
[1738997241421,0.0334994,96221.0,96219.0,0.155894]
[1738997241599,0.13496511,96220.0,96219.0,0.155894]
[1738997241807,0.1515793,96220.0,96219.0,0.155894]
[1738997242428,0.1515793,96220.0,96217.0,0.155896]
[1738997242590,0.0334994,96219.0,96218.0,0.15611928]
[1738997242787,0.13496511,96219.0,96218.0,0.15611928]
[1738997243319,0.1515793,96219.0,96218.0,0.15611928]
[1738997243924,0.1515793,96219.0,96218.0,0.00022428]
[1738997244126,0.1515793,96219.0,96218.0,0.15611928]
[1738997244327,0.1515793,96219.0,96218.0,0.00022428]
[1738997244328,0.41666917,96219.0,96218.0,0.00022428]
[1738997244526,0.41563123,96219.0,96218.0,0.00022428]
[1738997244845,0.42663123,96219.0,96218.0,0.00122428]
[1738997245465,0.42663123,96219.0,96218.0,0.00222428]
[1738997245466,0.43063123,96219.0,96218.0,0.00222428]
[1738997245885,0.44063123,96219.0,96218.0,0.00222428]
[1738997246096,0.48843123,96219.0,96218.0,0.00222428]
[1738997246246,0.48143123,96219.0,96218.0,0.00122428]
[1738997246624,0.49043123,96219.0,96218.0,0.00122428]
[1738997246810,0.49693245,96219.0,96218.0,0.00122428]
[1738997247014,0.48393245,96219.0,96218.0,0.00122428]
[1738997247212,0.48393245,96219.0,96218.0,0.00022428]
[1738997247213,0.50293245,96219.0,96218.0,0.00022428]
[1738997247506,0.52093245,96219.0,96218.0,0.00122428]
[1738997247653,0.52093245,96219.0,96218.0,0.00022428]
[1738997247861,0.51193245,96219.0,96218.0,0.00022428]
[1738997248070,0.52993245,96219.0,96218.0,0.00122428]
[1738997248266,0.52093245,96219.0,96218.0,0.00022428]
[1738997248471,0.50543123,96219.0,96218.0,0.00022428]
[1738997248648,0.51443123,96219.0,96218.0,0.00122428]
[1738997249265,0.50543123,96219.0,96218.0,0.00122428]
[1738997249680,0.51443123,96219.0,96218.0,0.00122428]
[1738997250105,0.50543123,96219.0,96218.0,0.00122428]
[1738997250355,0.165908,96210.0,96200.0,0.25177897]
[1738997250558,0.10250365,96201.0,96200.0,0.25177897]
[1738997250711,0.14252511,96201.0,96200.0,0.15635537]
[1738997251126,0.15912184,96201.0,96200.0,0.15635537]
[1738997251744,0.16572695,96201.0,96200.0,0.15635537]
[1738997252020,0.17272695,96201.0,96200.0,0.15735537]
[1738997252723,0.18172695,96201.0,96200.0,0.15735537]
[1738997255186,0.17522566,96201.0,96200.0,0.15735537]
[1738997258303,0.17522566,96201.0,96200.0,0.15757965]
[1738997258505,0.18172694,96201.0,96200.0,0.15757965]
[1738997263480,0.17416694,96201.0,96200.0,0.15757965]
[1738997263687,0.18172694,96201.0,96200.0,0.20717965]
[1738997265058,0.17522566,96201.0,96200.0,0.20717965]
[1738997267732,0.18172668,96201.0,96200.0,0.20717965]
[1738997270234,0.17416668,96201.0,96200.0,0.20717965]
[1738997270436,0.18172668,96201.0,96200.0,0.20717965]
[1738997276056,0.17416668,96201.0,96200.0,0.28807965]
[1738997276176,0.18172668,96201.0,96200.0,0.28807965]
[1738997277004,0.17522566,96201.0,96200.0,0.28807965]
[1738997278582,0.17522566,96201.0,96200.0,0.20717965]
[1738997279548,0.18172664,96201.0,96200.0,0.20717965]
[1738997280271,0.18172664,96201.0,96200.0,0.00165465]
[1738997282567,0.18172664,96201.0,96200.0,0.15757965]
[1738997283385,0.18172664,96201.0,96200.0,0.00165465]
[1738997284015,0.20593724,96201.0,96200.0,0.00165465]
[1738997284391,0.28813724,96201.0,96200.0,0.00165465]
[1738997284621,0.26392664,96201.0,96200.0,0.00165465]
[1738997285265,0.41984964,96201.0,96200.0,0.00165465]
[1738997285500,0.42984964,96201.0,96200.0,0.00165465]
[1738997286617,0.74994964,96201.0,96200.0,0.00165465]
[1738997288035,0.74094964,96201.0,96200.0,0.00165465]
[1738997288206,0.74094964,96201.0,96200.0,0.00065465]
[1738997288207,0.68053029,96201.0,96200.0,0.00065465]
[1738997288407,0.58702664,96201.0,96200.0,0.00065465]
[1738997288643,0.50482664,96201.0,96200.0,0.00065465]
[1738997288976,0.51282664,96201.0,96200.0,0.00165465]
[1738997289322,0.66874964,96201.0,96200.0,0.00165465]
[1738997289525,0.01,96200.0,96190.0,0.03250666]
[1738997289703,0.10250365,96191.0,96190.0,0.03250666]
[1738997289910,0.13496511,96191.0,96188.0,0.155943]
[1738997290105,0.13496511,96190.0,96186.0,0.02062627]
[1738997290260,0.03246146,96189.0,96187.0,0.155944]
[1738997290467,0.03246146,96189.0,96186.0,0.02062627]
[1738997290468,0.10250365,96188.0,96186.0,0.17657327]
[1738997290695,0.10250365,96188.0,96186.0,0.02062627]
[1738997290696,0.03246146,96187.0,96186.0,0.02062627]
[1738997290920,0.15154537,96187.0,96186.0,0.02062627]
[1738997291896,0.15354537,96187.0,96186.0,0.02062627]
[1738997292790,0.15354537,96187.0,96186.0,0.17657327]
[1738997293028,0.13696511,96187.0,96186.0,0.17657327]
[1738997293497,0.14196511,96187.0,96186.0,0.17657327]
[1738997293904,0.16504203,96187.0,96186.0,0.02062627]
[1738997294301,0.16004203,96187.0,96186.0,0.02062627]
[1738997294501,0.14346767,96187.0,96186.0,0.02062627]
[1738997294740,0.16704203,96187.0,96186.0,0.02062627]
[1738997294944,0.17304203,96187.0,96186.0,0.02173307]
[1738997295681,0.49314203,96187.0,96186.0,0.02173307]
[1738997296522,0.50070203,96187.0,96186.0,0.17768007]
[1738997299250,0.50070203,96187.0,96186.0,0.18791542]
[1738997301888,0.49314203,96187.0,96186.0,0.18791542]
[1738997302091,0.49314203,96187.0,96186.0,0.33901542]
[1738997302092,0.35817692,96187.0,96186.0,0.33901542]
[1738997302400,0.35817692,96187.0,96186.0,0.36071313]
[1738997302605,0.34160256,96187.0,96186.0,0.33901542]
[1738997302919,0.35816986,96187.0,96186.0,0.33901542]
[1738997303435,0.35816986,96187.0,96186.0,0.33801542]
[1738997303436,0.45467351,96187.0,96186.0,0.33801542]
[1738997303784,0.44567351,96187.0,96186.0,0.33801542]
[1738997303985,0.44667351,96187.0,96186.0,0.33801542]
[1738997304214,0.44867351,96187.0,96186.0,0.33801542]
[1738997304618,0.44667351,96187.0,96186.0,0.33801542]
[1738997305048,0.44967351,96187.0,96186.0,0.33801542]
[1738997305668,0.34716986,96187.0,96186.0,0.33801542]
[1738997305878,0.35757159,96187.0,96186.0,0.33801542]
[1738997306972,0.34716986,96187.0,96186.0,0.33801542]
[1738997307395,0.02706986,96187.0,96186.0,0.33801542]
[1738997307576,0.01050256,96187.0,96186.0,0.33801542]
[1738997309301,0.02090424,96187.0,96186.0,0.33801542]
[1738997310128,0.01790424,96187.0,96186.0,0.33801542]
[1738997310334,0.02090424,96187.0,96186.0,0.33801542]
[1738997310492,0.01990424,96187.0,96186.0,0.33801542]
[1738997310697,0.02090424,96187.0,96186.0,0.33801542]
[1738997310897,0.01790424,96187.0,96186.0,0.33801542]
[1738997311097,0.01990424,96187.0,96186.0,0.33801542]
[1738997311281,0.02090424,96187.0,96186.0,0.33801542]
[1738997315962,0.12340789,96187.0,96186.0,0.33801542]
[1738997318442,0.12363217,96187.0,96186.0,0.33801542]
[1738997318638,0.12363217,96187.0,96186.0,0.25581542]
[1738997319634,0.14020313,96187.0,96186.0,0.25581542]
[1738997323507,0.12980145,96187.0,96186.0,0.25581542]
[1738997330970,0.16222045,96187.0,96186.0,0.25581542]
[1738997331571,0.16022045,96187.0,96186.0,0.25581542]
[1738997331861,0.16222045,96187.0,96186.0,0.20991542]
[1738997332402,0.16022045,96187.0,96186.0,0.20991542]
[1738997332585,0.16222045,96187.0,96186.0,0.20991542]
[1738997332992,0.16022045,96187.0,96186.0,0.20991542]
[1738997333512,0.16122045,96187.0,96186.0,0.20991542]
[1738997333893,0.16222045,96187.0,96186.0,0.20991542]
[1738997334947,0.17262281,96187.0,96186.0,0.16310476]
[1738997336242,0.17062281,96187.0,96186.0,0.14010476]
[1738997336494,0.17262281,96187.0,96186.0,0.16058574]
[1738997336714,0.17062281,96187.0,96186.0,0.16058574]
[1738997337164,0.49172281,96187.0,96186.0,0.16058574]
[1738997337390,0.48132045,96187.0,96186.0,0.16058574]
[1738997338122,0.48132045,96187.0,96186.0,0.31058574]
[1738997339107,0.55722045,96187.0,96184.0,0.00022428]
[1738997339283,0.10250365,96185.0,96184.0,0.00022428]
[1738997339826,0.15148074,96185.0,96184.0,0.00022428]
[1738997340458,0.1579833,96185.0,96184.0,0.00022428]
[1738997340665,0.1669833,96185.0,96184.0,0.00122428]
[1738997342413,0.1759833,96185.0,96184.0,0.00122428]
[1738997343006,0.4960833,96185.0,96184.0,0.00122428]
[1738997346320,0.48958074,96185.0,96184.0,0.00122428]
[1738997349233,0.49608336,96185.0,96180.0,0.155957]
[1738997349419,0.13492265,96184.0,96180.0,0.155957]
[1738997349623,0.13492265,96184.0,96179.0,0.02091923]
[1738997349624,0.04896242,96183.0,96179.0,0.02091923]
[1738997349849,0.13492265,96182.0,96179.0,0.02091923]
[1738997349999,0.032419,96181.0,96179.0,0.17687823]
[1738997350201,0.11904707,96180.0,96179.0,0.17687823]
[1738997350398,0.47156607,96180.0,96179.0,0.02091923]
[1738997351468,0.47156607,96180.0,96179.0,0.02191923]
[1738997351680,0.48056607,96180.0,96179.0,0.02191923]
[1738997352054,0.47156607,96180.0,96179.0,0.02191923]
[1738997352588,0.48056607,96180.0,96179.0,0.02191923]
[1738997353014,0.48756607,96180.0,96179.0,0.02291923]
[1738997353212,0.48056607,96180.0,96179.0,0.17687823]
[1738997353628,0.48756607,96180.0,96179.0,0.17798503]
[1738997355546,0.47856607,96180.0,96179.0,0.17798503]
[1738997355953,0.48056607,96180.0,96179.0,0.17698503]
[1738997356286,0.48756607,96180.0,96179.0,0.17798503]
[1738997356802,0.48756607,96180.0,96179.0,0.20098503]
[1738997357243,0.48756607,96180.0,96179.0,0.24658503]
[1738997357452,0.45514707,96180.0,96179.0,0.24658503]
[1738997357856,0.44614707,96180.0,96179.0,0.24658503]
[1738997358272,0.45514707,96180.0,96179.0,0.24658503]
[1738997358983,0.02554342,96180.0,96179.0,0.32668503]
[1738997359187,0.02554342,96180.0,96179.0,0.50895327]
[1738997359393,0.015,96180.0,96179.0,0.50995327]
[1738997360174,0.009,96180.0,96179.0,0.50895327]
[1738997360477,0.01,96180.0,96179.0,0.50895327]
[1738997360907,0.011,96180.0,96179.0,0.50895327]
[1738997361037,0.002,96180.0,96179.0,0.50895327]
[1738997361238,0.004,96180.0,96179.0,0.50895327]
[1738997361859,0.002,96180.0,96179.0,0.50895327]
[1738997362064,0.004,96180.0,96179.0,0.50895327]
[1738997362636,0.004,96180.0,96179.0,0.48725556]
[1738997363243,0.002,96180.0,96179.0,0.48725556]
[1738997363616,0.003,96180.0,96179.0,0.48725556]
[1738997364242,0.10350365,96180.0,96179.0,0.48725556]
[1738997364449,0.10650365,96180.0,96179.0,0.48725556]
[1738997364885,0.10250365,96180.0,96179.0,0.48725556]
[1738997365271,0.10450365,96180.0,96179.0,0.48725556]
[1738997365795,0.10250365,96180.0,96179.0,0.48725556]
[1738997366034,0.10450365,96180.0,96179.0,0.48725556]
[1738997366215,0.10550365,96180.0,96179.0,0.48725556]
[1738997366555,0.10450365,96180.0,96179.0,0.48725556]
[1738997366768,0.10550365,96180.0,96179.0,0.48725556]
[1738997367240,0.10350365,96180.0,96179.0,0.48725556]
[1738997367586,0.10550365,96180.0,96179.0,0.48725556]
[1738997377040,0.10550365,96180.0,96179.0,0.40615556]
[1738997386431,0.1213063,96180.0,96179.0,0.40615556]
[1738997386570,0.10550365,96180.0,96179.0,0.40615556]
[1738997387525,0.13795886,96180.0,96179.0,0.40615556]
[1738997387903,0.15376151,96180.0,96179.0,0.40615556]
[1738997392318,0.15376151,96180.0,96179.0,0.36055556]
[1738997393578,0.47386151,96180.0,96179.0,0.36055556]
[1738997394610,0.47086151,96180.0,96179.0,0.36055556]
[1738997394989,0.47286151,96180.0,96179.0,0.36055556]
[1738997395161,0.47386151,96180.0,96179.0,0.36055556]
[1738997401247,0.47386151,96180.0,96179.0,0.33755556]
[1738997401990,0.48036344,96180.0,96179.0,0.33755556]
[1738997408417,0.47936344,96180.0,96179.0,0.33755556]
[1738997408843,0.47836344,96180.0,96179.0,0.33755556]
[1738997409049,0.48036344,96180.0,96179.0,0.33755556]
[1738997411531,0.48036344,96180.0,96179.0,0.36055556]
[1738997413407,0.47386151,96180.0,96179.0,0.36055556]
[1738997413610,0.47386151,96180.0,96179.0,0.43015327]
[1738997415087,0.47286151,96180.0,96179.0,0.43015327]
[1738997415284,0.47086151,96180.0,96179.0,0.43015327]
[1738997415803,0.47286151,96180.0,96179.0,0.43015327]
[1738997416831,0.47936318,96180.0,96179.0,0.43015327]
[1738997417008,0.47936318,96180.0,96179.0,0.36055556]
[1738997419205,0.47846318,96180.0,96179.0,0.36055556]
[1738997419809,0.47846318,96180.0,96179.0,0.44105556]
[1738997421493,0.47646318,96180.0,96179.0,0.44105556]
[1738997421927,0.47846318,96180.0,96179.0,0.44105556]
[1738997422247,0.47646318,96180.0,96179.0,0.44105556]
[1738997422778,0.47846318,96180.0,96179.0,0.44105556]
[1738997423780,0.47946318,96180.0,96179.0,0.44105556]
[1738997424347,0.47746318,96180.0,96179.0,0.44105556]
[1738997424750,0.47946318,96180.0,96179.0,0.44105556]
[1738997424957,0.47846318,96180.0,96179.0,0.46275327]
[1738997425159,0.47646318,96180.0,96179.0,0.46275327]
[1738997425581,0.47846318,96180.0,96179.0,0.46275327]
[1738997426037,0.47646318,96180.0,96179.0,0.46275327]
[1738997426240,0.32197405,96180.0,96179.0,0.51065327]
[1738997426441,0.33934602,96180.0,96179.0,0.51065327]
[1738997426846,0.33834602,96180.0,96179.0,0.51065327]
[1738997427489,0.32984435,96180.0,96179.0,0.51065327]
[1738997427895,0.33184435,96180.0,96179.0,0.51065327]
[1738997428130,0.29794435,96180.0,96179.0,0.51065327]
[1738997428364,0.29594435,96180.0,96179.0,0.51065327]
[1738997428630,0.29594435,96180.0,96179.0,0.51165327]
[1738997428832,0.29594435,96180.0,96179.0,0.51365327]
[1738997429218,0.01437197,96180.0,96179.0,0.51365327]
[1738997429447,0.05,96181.0,96180.0,0.328957]
[1738997430041,0.05,96181.0,96180.0,0.35065471]
[1738997430887,0.05,96181.0,96180.0,0.35165471]
[1738997431414,0.05650116,96181.0,96180.0,0.35265471]
[1738997431612,0.03530116,96181.0,96180.0,0.35265471]
[1738997434096,0.03530116,96181.0,96180.0,0.330957]
[1738997434638,0.12875477,96181.0,96180.0,0.330957]
[1738997435318,0.23125842,96181.0,96180.0,0.307957]
[1738997435512,0.20245842,96181.0,96180.0,0.307957]
[1738997435693,0.21835257,96181.0,96180.0,0.330957]
[1738997436711,0.21835257,96181.0,96180.0,0.329957]
[1738997437141,0.22135257,96181.0,96180.0,0.329957]
[1738997437333,0.22135257,96181.0,96180.0,0.328957]
[1738997437604,0.21935257,96181.0,96180.0,0.328957]
[1738997437811,0.21935257,96181.0,96180.0,0.3290638]
[1738997438030,0.22157685,96181.0,96180.0,0.3290638]
[1738997438205,0.12812324,96181.0,96180.0,0.3290638]
[1738997444194,0.12162208,96181.0,96180.0,0.3290638]
[1738997445087,0.15404784,96181.0,96180.0,0.3290638]
[1738997451418,0.15304784,96181.0,96180.0,0.3290638]
[1738997451881,0.15604784,96181.0,96180.0,0.3290638]
[1738997452105,0.43762022,96181.0,96180.0,0.3060638]
[1738997452330,0.43762022,96181.0,96180.0,0.0001068]
[1738997452331,0.51522022,96181.0,96180.0,0.0001068]